fUSD/lending_fUSD_20260418
["ID","MTS","AMOUNT","RATE_DAILY","PERIOD"]
[420666905,1776451844962,-150.0,0.00011308,2]
[420666906,1776451844975,-150.0,0.0001132,2]
[420666907,1776451844987,-764.0,0.00011324,5]
[420666908,1776451844999,-150.0,0.00011324,2]
[420666909,1776451845010,-150.0,0.00011348,2]
[420666910,1776451845022,-150.0,0.00011348,2]
[420666911,1776451845034,-150.0,0.00011348,2]
[420666912,1776451845046,-150.0,0.00011376,2]
[420666913,1776451845058,-14272.05120482,0.00011384,2]
[420666914,1776451845069,-150.0,0.00011388,2]
[420666915,1776451845081,-150.0,0.00011388,2]
[420666916,1776451845092,-150.0,0.00011394,2]
[420666917,1776451845105,-200.0,0.000114,4]
[420666918,1776451845116,-150.0,0.00011423,2]
[420666919,1776451845128,-150.0,0.00011433,2]
[420666920,1776451845139,-150.0,0.00011447,2]
[420666921,1776451845151,-150.0,0.00011467,2]
[420666922,1776451845163,-150.0,0.00011467,2]
[420666923,1776451845175,-150.0,0.00011467,2]
[420666924,1776451845188,-267.79541215,0.00011471,2]
[420666925,1776451845199,-150.0,0.00011486,2]
[420666926,1776451845210,-1116.0,0.0001149,2]
[420666927,1776451845223,-150.0,0.0001149,2]
[420666928,1776451845234,-150.0,0.00011497,2]
[420666929,1776451845247,-200.0,0.000115,4]
[420666930,1776451845258,-380.0,0.00011505,7]
[420666931,1776451845269,-190.18,0.00011542,2]
[420666932,1776451845280,-150.0,0.00011547,2]
[420666933,1776451845292,-150.0,0.00011547,2]
[420666934,1776451845303,-150.0,0.00011547,2]
[420666935,1776451845314,-150.0,0.00011547,2]
[420666936,1776451845326,-150.0,0.00011547,2]
[420666983,1776451846833,-150.0,0.00011547,2]
[420666984,1776451846869,-150.0,0.00011572,2]
[420666985,1776451846897,-150.0,0.00011578,2]
[420666986,1776451846937,-185.07,0.00011578,2]
[420666987,1776451846970,-200.0,0.000116,4]
[420666988,1776451846981,-150.0,0.00011604,2]
[420666989,1776451846991,-150.0,0.00011624,2]
[420666990,1776451847000,-150.0,0.00011627,2]
[420666991,1776451847010,-150.0,0.00011627,2]
[420666992,1776451847020,-1000.0,0.00011627,2]
[420666993,1776451847030,-1000.0,0.00011646,2]
[420666994,1776451847040,-150.0,0.00011647,2]
[420666995,1776451847049,-150.0,0.00011647,2]
[420666996,1776451847059,-150.0,0.00011661,2]
[420666997,1776451847069,-150.0,0.0001167,2]
[420666998,1776451847078,-449.12330087,0.00011671,2]
[420666999,1776451847088,-1157.0,0.00011689,2]
[420667000,1776451847097,-224.0,0.00011692,2]
[420667001,1776451847107,-200.0,0.000117,4]
[420667002,1776451847116,-150.0,0.00011706,2]
[420667003,1776451847126,-150.0,0.00011706,2]
[420667004,1776451847136,-150.0,0.00011706,2]
[420667005,1776451847146,-150.0,0.00011718,2]
[420667006,1776451847157,-200.0,0.00011719,2]
[420667007,1776451847177,-150.0,0.00011721,2]
[420667008,1776451847191,-150.0,0.00011746,2]
[420667009,1776451847201,-150.0,0.00011746,2]
[420667010,1776451847212,-1324.33736401,0.0001176,2]
[420667011,1776451847221,-150.0,0.00011761,2]
[420667012,1776451847231,-150.0,0.00011775,2]
[420667013,1776451847241,-150.0,0.00011786,2]
[420667014,1776451847250,-150.0,0.00011786,2]
[420667015,1776451847260,-150.0,0.00011796,2]
[420667016,1776451847270,-730.0,0.000118,4]
[420667017,1776451847280,-150.0,0.00011831,2]
[420667018,1776451847290,-150.0,0.00011846,2]
[420667019,1776451847300,-150.0,0.00011853,2]
[420667020,1776451847309,-150.0,0.00011866,2]
[420667021,1776451847319,-150.0,0.00011866,2]
[420667022,1776451847329,-150.0,0.00011871,2]
[420667023,1776451847339,-19998.793027,0.00011879,2]
[420667024,1776451847348,-10732.81540847,0.0001188,2]
[420667025,1776451847358,-700.0,0.00011883,3]
[420667026,1776451847368,-150.0,0.00011888,2]
[420667027,1776451847377,-2000.0,0.000119,2]
[420667028,1776451847387,-14272.05120482,0.000119,2]
[420667029,1776451847397,-1804.11159323,0.000119,2]
[420667030,1776451847407,-2139.06628203,0.000119,2]
[420667031,1776451847417,-12525.95530336,0.000119,2]
[420667032,1776451847426,-447.61665,0.0001192,2]
[420667033,1776451847436,-150.0,0.00011924,2]
[420667034,1776451847446,-200.0,0.00011945,3]
[420667035,1776451847455,-200.0,0.00011945,3]
[420667036,1776451847465,-200.0,0.00011945,2]
[420667037,1776451847474,-200.0,0.00011945,2]
[420667038,1776451847484,-200.0,0.00011945,2]
[420667039,1776451847495,-200.0,0.00011945,2]
[420667040,1776451847504,-200.0,0.00011945,2]
[420667041,1776451847514,-200.0,0.00011945,2]
[420667042,1776451847523,-200.0,0.00011945,2]
[420667043,1776451847533,-200.0,0.00011945,3]
[420667044,1776451847543,-263.64,0.00011945,2]
[420667045,1776451847553,-239.05796219,0.00011945,2]
[420667046,1776451847562,-150.0,0.00011945,2]
[420667047,1776451847572,-150.0,0.00011945,2]
[420667048,1776451847582,-158.85329972,0.00011945,2]
[420667049,1776451847592,-150.0,0.00011945,2]
[420667050,1776451847601,-155.26000303,0.00011945,2]
[420667051,1776451847611,-150.0,0.00011945,2]
[420667052,1776451847620,-152.53389495,0.00011945,2]
[420667053,1776451847630,-150.0,0.00011945,2]
[420667054,1776451847640,-150.0,0.00011945,2]
[420667055,1776451847650,-151.0,0.00011963,2]
[420667056,1776451847660,-151.0,0.00011963,2]
[420667057,1776451847670,-1260.1605773,0.00011966,2]
[420667058,1776451847679,-6263.4827817,0.00011966,2]
[420667059,1776451847689,-74301.328121,0.00011966,2]
[420667060,1776451847698,-145885.0510788,0.00011966,2]
[420667061,1776451847708,-1258.3866133,0.00011966,2]
[420667062,1776451847717,-5924.24229045,0.00011966,2]
[420667063,1776451847821,-739.19952,0.00011966,2]
[420667064,1776451848130,-68525.97040653,0.00011966,2]
[420667065,1776451848162,-3133.36474565,0.00011966,2]
[420667066,1776451848192,-3184.36845301,0.00011966,2]
[420667067,1776451848208,-1959.29828611,0.00011966,2]
[420667068,1776451848222,-1596.14375032,0.00011966,2]
[420667069,1776451848248,-32634.10782244,0.0001138,2]
[420667070,1776451848259,-50595.95328123,0.00011966,2]
[420667071,1776451848269,-151.0,0.00011966,2]
[420667072,1776451848279,-151.0,0.00011966,2]
[420667073,1776451848290,-2069.906185,0.00011966,2]
[420667074,1776451848300,-2069.906185,0.00011966,2]
[420667075,1776451848310,-2069.906185,0.00011966,2]
[420667076,1776451848320,-2069.906185,0.00011966,2]
[420667077,1776451848331,-151.0,0.00011966,2]
[420667078,1776451848341,-151.0,0.00011966,2]
[420667079,1776451848351,-447.61664,0.0001197,2]
[420667080,1776451848362,-500.0,0.00011973,2]
[420667081,1776451848373,-362.00417451,0.00011973,2]
[420667082,1776451848383,-166.32898409,0.00011973,2]
[420667083,1776451848394,-500.0,0.00011973,2]
[420667084,1776451848405,-500.0,0.00011973,2]
[420667085,1776451848416,-500.0,0.00011973,2]
[420667086,1776451848426,-500.0,0.00011973,2]
[420667087,1776451848437,-500.0,0.00011973,2]
[420667088,1776451848447,-500.0,0.00011973,2]
[420667089,1776451848457,-500.0,0.00011973,2]
[420667090,1776451848467,-500.0,0.00011973,2]
[420667091,1776451848478,-500.0,0.00011973,2]
[420667092,1776451848488,-500.0,0.00011973,2]
[420667093,1776451848499,-500.20553032,0.00011973,2]
[420667094,1776451848509,-500.0,0.00011973,2]
[420667095,1776451848519,-500.0,0.00011973,2]
[420667096,1776451848530,-290.1,0.00011988,2]
[420667097,1776451848540,-165.5303,0.0001199,2]
[420667098,1776451848550,-165.5303,0.0001199,2]
[420667099,1776451848560,-151.0,0.00011997,2]
[420667100,1776451848571,-300.0,0.00011999,2]
[420667101,1776451848581,-300.0,0.00011999,2]
[420667102,1776451848595,-420988.55280993,0.00012,2]
[420667104,1776451893913,454.32772683,7.258e-05,2]
[420667105,1776451893940,428.12226346,7.258e-05,2]
[420667106,1776451893978,882.44999029,7.258e-05,2]
[420667107,1776451894018,882.44999029,7.258e-05,2]
[420667108,1776451894056,882.44999029,7.258e-05,2]
[420667109,1776451894091,882.44999029,7.258e-05,2]
[420667110,1776451894131,882.44999029,7.258e-05,2]
[420667111,1776451894176,882.44999029,7.258e-05,2]
[420667112,1776451894215,882.44999029,7.258e-05,2]
[420667113,1776451894253,882.44999029,7.258e-05,2]
[420667114,1776451894290,882.44999029,7.258e-05,2]
[420667115,1776451894333,882.44999029,7.258e-05,2]
[420667116,1776451894370,747.38783364,7.258e-05,2]
[420667117,1776451894396,135.06215665,7.258e-05,2]
[420667118,1776451894433,882.44999029,7.258e-05,2]
[420667119,1776451894472,882.44999029,7.258e-05,2]
[420667120,1776451894506,882.44999029,7.258e-05,2]
[420667121,1776451894543,882.44999029,7.258e-05,2]
[420667122,1776451894583,882.44999029,7.258e-05,2]
[420667123,1776451894623,882.44999029,7.258e-05,2]
[420667124,1776451894661,882.44999029,7.258e-05,2]
[420667125,1776451894700,882.44999029,7.258e-05,2]
[420667126,1776451894737,882.44999029,7.258e-05,2]
[420667127,1776451894770,1922.89793074,7.159e-05,2]
[420667128,1776451894795,10000.01,7.159e-05,2]
[420667129,1776451894819,10000.01,7.159e-05,2]
[420667130,1776451894843,10000.01,7.159e-05,2]
[420667131,1776451894867,10000.01,7.159e-05,2]
[420667132,1776451894891,10000.01,7.159e-05,2]
[420667133,1776451894915,10000.01,7.159e-05,2]
[420667134,1776451894938,10000.01,7.159e-05,2]
[420667135,1776451897722,-1569.17505012,7.159e-05,2]
[420667136,1776451903198,-300.0,7.159e-05,2]
[420667138,1776451921151,300.0,7.158e-05,2]
[420667139,1776451967301,383.23464221,7.158e-05,2]
[420667140,1776451969487,500.0,7.158e-05,2]
[420667141,1776451969520,457.3466933,7.158e-05,2]
[420667142,1776451969563,697.13549233,7.158e-05,2]
[420667143,1776451969619,697.13549233,7.158e-05,2]
[420667144,1776451969662,217.29227619,7.158e-05,2]
[420667145,1776451969716,697.13549233,7.158e-05,2]
[420667146,1776451969762,697.13549233,7.158e-05,2]
[420667147,1776451969813,353.59441898,7.158e-05,2]
[420667148,1776451969845,343.54107335,7.158e-05,2]
[420667149,1776451969911,697.13549233,7.158e-05,2]
[420667150,1776451969974,697.13549233,7.158e-05,2]
[420667151,1776451970476,697.13549233,7.158e-05,2]
[420667152,1776451970532,697.13549233,7.158e-05,2]
[420667153,1776451970591,697.13549233,7.158e-05,2]
[420667154,1776451970645,697.13549233,7.158e-05,2]
[420667155,1776451970694,473.65597267,7.158e-05,2]
[420667156,1776451970724,223.47951966,7.158e-05,2]
[420667157,1776451970788,697.13549233,7.158e-05,2]
[420667158,1776451970925,697.13549233,7.158e-05,2]
[420667159,1776451970984,697.13549233,7.158e-05,2]
[420667160,1776451971038,697.13549233,7.158e-05,2]
[420667161,1776451971091,697.13549233,7.158e-05,2]
[420667162,1776451971141,697.13549233,7.158e-05,2]
[420667163,1776451971193,593.71752636,7.158e-05,2]
[420667164,1776451971222,103.41796597,7.158e-05,2]
[420667165,1776451971282,697.13549233,7.158e-05,2]
[420667166,1776451973273,697.13549233,7.158e-05,2]
[420667167,1776451973316,697.13549233,7.158e-05,2]
[420667168,1776451973381,697.13549233,7.158e-05,2]
[420667169,1776451973443,697.13549233,7.158e-05,2]
[420667170,1776451973499,697.13549233,7.158e-05,2]
[420667171,1776451973572,697.13549233,7.158e-05,2]
[420667172,1776451973628,16.64358772,7.158e-05,2]
[420667173,1776451973658,680.49190461,7.158e-05,2]
[420667174,1776451973712,697.13549233,7.158e-05,2]
[420667175,1776451973772,697.13549233,7.158e-05,2]
[420667176,1776451973824,697.13549233,7.158e-05,2]
[420667177,1776451973872,697.13549233,7.158e-05,2]
[420667178,1776451973920,697.13549233,7.158e-05,2]
[420667179,1776451973984,697.13549233,7.158e-05,2]
[420667180,1776451974035,136.70514141,7.158e-05,2]
[420667181,1776451974063,560.43035092,7.158e-05,2]
[420667182,1776451974126,697.13549233,7.158e-05,2]
[420667183,1776451974185,697.13549233,7.158e-05,2]
[420667184,1776451974233,697.13549233,7.158e-05,2]
[420667185,1776451974298,697.13549233,7.158e-05,2]
[420667186,1776451974387,697.13549233,7.158e-05,2]
[420667187,1776451974454,697.13549233,7.158e-05,2]
[420667188,1776451974503,256.7666951,7.158e-05,2]
[420667189,1776451974532,440.36879723,7.158e-05,2]
[420667190,1776451974601,697.13549233,7.158e-05,2]
[420667191,1776451974666,697.13549233,7.158e-05,2]
[420667192,1776451974717,697.13549233,7.158e-05,2]
[420667193,1776451974779,697.13549233,7.158e-05,2]
[420667194,1776451974835,697.13549233,7.158e-05,2]
[420667195,1776451974930,697.13549233,7.158e-05,2]
[420667196,1776451975168,376.82824879,7.158e-05,2]
[420667197,1776451975198,320.30724354,7.158e-05,2]
[420667198,1776451975384,697.13549233,7.158e-05,2]
[420667199,1776451975540,697.13549233,7.158e-05,2]
[420667200,1776451987753,158.0,7.158e-05,3]
[420667201,1776451990140,500.0,7.158e-05,2]
[420667202,1776451990182,500.0,7.158e-05,2]
[420667203,1776451990225,500.0,7.158e-05,2]
[420667204,1776451990313,500.0,7.158e-05,2]
[420667205,1776451990356,500.0,7.158e-05,2]
[420667206,1776451990395,500.0,7.158e-05,2]
[420667207,1776451990429,127.4317718,7.158e-05,2]
[420667208,1776451990455,372.5682282,7.158e-05,2]
[420667209,1776451990494,500.0,7.158e-05,2]
[420667210,1776451990534,500.0,7.158e-05,2]
[420667211,1776451990578,500.0,7.158e-05,2]
[420667212,1776451990616,500.0,7.158e-05,2]
[420667213,1776451990998,500.0,7.158e-05,2]
[420667214,1776451991092,500.0,7.158e-05,2]
[420667215,1776451991139,500.0,7.158e-05,2]
[420667216,1776451991175,500.0,7.158e-05,2]
[420667217,1776451991214,500.0,7.158e-05,2]
[420667218,1776451991249,127.4417718,7.158e-05,2]
[420667219,1776451991276,372.5582282,7.158e-05,2]
[420667220,1776451991315,500.0,7.158e-05,2]
[420667221,1776451991355,500.0,7.158e-05,2]
[420667222,1776451991389,500.0,7.158e-05,2]
[420667223,1776451991427,500.0,7.158e-05,2]
[420667224,1776451991475,500.0,7.158e-05,2]
[420667225,1776451991515,500.0,7.158e-05,2]
[420667226,1776451991553,500.0,7.158e-05,2]
[420667227,1776451991595,500.0,7.158e-05,2]
[420667228,1776451991631,500.0,7.158e-05,2]
[420667229,1776451991671,127.4517718,7.158e-05,2]
[420667230,1776451991700,372.5482282,7.158e-05,2]
[420667231,1776451991737,500.0,7.158e-05,2]
[420667232,1776451991776,500.0,7.158e-05,2]
[420667233,1776451991823,500.0,7.158e-05,2]
[420667234,1776451991880,500.0,7.158e-05,2]
[420667235,1776451991916,500.0,7.158e-05,2]
[420667236,1776451991957,500.0,7.158e-05,2]
[420667237,1776451992002,500.0,7.158e-05,2]
[420667238,1776451992186,166.0,7.158e-05,3]
[420667239,1776452020159,500.0,7.158e-05,2]
[420667240,1776452020200,461.4617718,7.158e-05,2]
[420667241,1776452020229,38.5382282,7.158e-05,2]
[420667242,1776452020273,500.0,7.158e-05,2]
[420667243,1776452020308,500.0,7.158e-05,2]
[420667244,1776452020366,495.90894647,7.158e-05,2]
[420667245,1776452020404,500.0,7.158e-05,2]
[420667246,1776452020442,500.0,7.158e-05,2]
[420667247,1776452020502,500.0,7.158e-05,2]
[420667248,1776452020545,500.0,7.158e-05,2]
[420667249,1776452020582,500.0,7.158e-05,2]
[420667250,1776452021161,500.0,7.158e-05,2]
[420667251,1776452021232,465.56282533,7.158e-05,2]
[420667252,1776452021261,34.43717467,7.158e-05,2]
[420667253,1776452021308,500.0,7.158e-05,2]
[420667254,1776452021366,500.0,7.158e-05,2]
[420667255,1776452021406,500.0,7.158e-05,2]
[420667256,1776452021470,500.0,7.158e-05,2]
[420667257,1776452021513,500.0,7.158e-05,2]
[420667258,1776452021550,500.0,7.158e-05,2]
[420667259,1776452023860,500.0,7.158e-05,2]
[420667260,1776452023920,500.0,7.158e-05,2]
[420667261,1776452042282,150.0,7.158e-05,2]
[420667262,1776452042664,300.0,7.158e-05,2]
[420667263,1776452044822,515.57282533,7.158e-05,3]
[420667264,1776452044851,270.42717467,7.158e-05,3]
[420667265,1776452052107,161.0,7.158e-05,3]
[420667266,1776452101118,300.0,7.158e-05,2]
[420667267,1776452101198,1200.0,7.158e-05,2]
[420667268,1776452108619,747.0,7.158e-05,3]
[420667269,1776452108765,153.0,7.158e-05,3]
[420667270,1776452113164,162.0,7.158e-05,3]
[420667271,1776452168499,709.0,7.158e-05,3]
[420667272,1776452173123,162.0,7.158e-05,3]
[420667273,1776452211948,163.0,7.158e-05,3]
[420667274,1776452222216,150.0,7.158e-05,2]
[420667275,1776452225521,500.0,7.158e-05,2]
[420667276,1776452225826,322.58282533,7.158e-05,2]
[420667277,1776452225851,177.41717467,7.158e-05,2]
[420667278,1776452225889,500.0,7.158e-05,2]
[420667279,1776452225934,500.0,7.158e-05,2]
[420667280,1776452226038,451.79699213,7.158e-05,2]
[420667281,1776452238009,500.0,7.158e-05,2]
[420667282,1776452238055,500.0,7.158e-05,2]
[420667283,1776452238098,500.0,7.158e-05,2]
[420667284,1776452238173,574.77910284,7.158e-05,2]
[420667285,1776452238223,500.0,7.158e-05,2]
[420667286,1776452238281,500.0,7.158e-05,2]
[420667287,1776452238341,296.01673036,7.158e-05,2]
[420667288,1776452238383,203.98326964,7.158e-05,2]
[420667289,1776452238438,500.0,7.158e-05,2]
[420667290,1776452238493,500.0,7.158e-05,2]
[420667291,1776452238567,500.0,7.158e-05,2]
[420667292,1776452238611,500.0,7.158e-05,2]
[420667293,1776452238654,500.0,7.158e-05,2]
[420667294,1776452238703,500.0,7.158e-05,2]
[420667295,1776452242364,500.0,7.158e-05,2]
[420667296,1776452256681,322.18885684,7.158e-05,2]
[420667297,1776452281104,300.0,7.158e-05,2]
[420667298,1776452290078,674.0,7.158e-05,3]
[420667299,1776452306484,563.17017632,7.158e-05,2]
[420667300,1776452346709,640.0,7.158e-05,3]
[420667301,1776452401152,1200.0,7.158e-05,2]
[420667302,1776452401407,300.0,7.158e-05,2]
[420667303,1776452402248,150.0,7.158e-05,2]
[420667304,1776452412751,608.0,7.158e-05,3]
[420667305,1776452414963,157.0,7.158e-05,3]
[420667307,1776452454353,500.0,7.158e-05,2]
[420667308,1776452454390,186.10185111,7.158e-05,2]
[420667312,1776452467760,594.0,7.158e-05,3]
[420667313,1776452489336,2305.315,7.016e-05,2]
[420667314,1776452489393,181.75201639,7.016e-05,2]
[420667318,1776452498621,326.68013548,7.158e-05,2]
[420667319,1776452516179,150.0,7.158e-05,2]
[420667321,1776452522550,300.0,7.158e-05,2]
[420667322,1776452527815,564.0,7.158e-05,3]
[420667323,1776452531992,500.0,7.158e-05,2]
[420667325,1776452532245,253.63159954,7.158e-05,2]
[420667326,1776452537938,350.0,7.158e-05,2]
[420667327,1776452541069,500.0,7.158e-05,2]
[420667328,1776452542216,163.0,7.158e-05,3]
[420667330,1776452583272,300.0,7.158e-05,2]
[420667331,1776452583401,150.0,7.158e-05,2]
[420667332,1776452583456,300.0,7.158e-05,2]
[420667333,1776452585647,536.0,7.158e-05,3]
[420667334,1776452602475,500.0,7.158e-05,2]
[420667335,1776452602528,500.0,7.158e-05,2]
[420667336,1776452602586,291.5612097,7.158e-05,2]
[420667337,1776452602618,390.96818778,7.158e-05,2]
[420667338,1776452602641,109.03181222,7.158e-05,2]
[420667339,1776452611301,500.0,7.158e-05,2]
[420667340,1776452613122,500.0,7.158e-05,2]
[420667341,1776452620235,500.0,7.158e-05,2]
[420667342,1776452620291,500.0,7.158e-05,2]
[420667343,1776452620376,274.03659205,7.158e-05,2]
[420667344,1776452632734,500.0,7.158e-05,2]
[420667345,1776452632797,500.0,7.158e-05,2]
[420667346,1776452632853,500.0,7.158e-05,2]
[420667347,1776452632891,326.18042097,7.158e-05,2]
[420667348,1776452641685,300.0,7.158e-05,2]
[420667349,1776452644382,500.0,7.158e-05,2]
[420667350,1776452644415,500.0,7.158e-05,2]
[420667351,1776452645316,509.0,7.158e-05,3]
[420667352,1776452653190,500.0,7.158e-05,2]
[420667353,1776452653250,500.0,7.158e-05,2]
[420667354,1776452653298,500.0,7.158e-05,2]
[420667355,1776452653354,291.5612097,7.158e-05,2]
[420667356,1776452653683,1200.0,7.158e-05,2]
[420667357,1776452661711,500.0,7.158e-05,2]
[420667358,1776452661859,490.19996506,7.158e-05,2]
[420667359,1776452661885,9.80003494,7.158e-05,2]
[420667361,1776452684776,500.0,7.158e-05,2]
[420667362,1776452684826,500.0,7.158e-05,2]
[420667363,1776452684883,500.0,7.158e-05,2]
[420667364,1776452684935,291.5612097,7.158e-05,2]
[420667365,1776452696202,500.0,7.158e-05,2]
[420667366,1776452696300,500.0,7.158e-05,2]
[420667367,1776452699523,500.0,7.158e-05,2]
[420667368,1776452699576,500.0,7.158e-05,2]
[420667369,1776452699633,578.69243807,7.158e-05,2]
[420667370,1776452701090,300.0,7.158e-05,2]
[420667371,1776452701133,1137.0,7.158e-05,2]
[420667372,1776452705583,154.0,7.158e-05,3]
[420667373,1776452707649,483.0,7.158e-05,3]
[420667375,1776452717454,500.0,7.158e-05,2]
[420667376,1776452717550,500.0,7.158e-05,2]
[420667377,1776452717593,583.12241939,7.158e-05,2]
[420667378,1776452717633,500.0,7.158e-05,2]
[420667379,1776452717676,500.0,7.158e-05,2]
[420667380,1776452717719,500.0,7.158e-05,2]
[420667381,1776452717764,462.8338979,7.158e-05,2]
[420667382,1776452717793,37.1661021,7.158e-05,2]
[420667383,1776452734919,499.99999999,7.158e-05,2]
[420667384,1776452743746,581.78633364,7.158e-05,2]
[420667385,1776452753874,500.0,7.158e-05,2]
[420667386,1776452753912,543.27888033,7.158e-05,2]
[420667387,1776452753959,500.0,7.158e-05,2]
[420667388,1776452754000,500.0,7.158e-05,2]
[420667389,1776452754065,500.0,7.158e-05,2]
[420667390,1776452754103,500.0,7.158e-05,2]
[420667391,1776452754143,500.0,7.158e-05,2]
[420667393,1776452761155,300.0,7.158e-05,2]
[420667394,1776452765899,500.0,7.158e-05,2]
[420667395,1776452765947,583.1224194,7.158e-05,2]
[420667396,1776452766000,500.0,7.158e-05,2]
[420667397,1776452766048,500.0,7.158e-05,2]
[420667398,1776452766096,500.0,7.158e-05,2]
[420667399,1776452766146,500.0,7.158e-05,2]
[420667400,1776452771427,459.0,7.158e-05,3]
[420667401,1776452775541,500.0,7.158e-05,2]
[420667402,1776452778430,533.12241939,7.158e-05,2]
[420667403,1776452778495,462.53384515,7.158e-05,2]
[420667404,1776452778524,37.46615485,7.158e-05,2]
[420667405,1776452778561,500.0,7.158e-05,2]
[420667406,1776452778615,500.0,7.158e-05,2]
[420667407,1776452778663,500.0,7.158e-05,2]
[420667408,1776452778708,500.0,7.158e-05,2]
[420667409,1776452783598,150.0,7.158e-05,2]
[420667410,1776452814396,500.0,7.158e-05,2]
[420667411,1776452814435,500.0,7.158e-05,2]
[420667412,1776452814470,500.0,7.158e-05,2]
[420667413,1776452814524,500.0,7.158e-05,2]
[420667414,1776452814560,500.0,7.158e-05,2]
[420667415,1776452814595,500.0,7.158e-05,2]
[420667416,1776452814631,500.0,7.158e-05,2]
[420667417,1776452814674,575.3253709,7.158e-05,2]
[420667418,1776452821471,300.0,7.158e-05,2]
[420667420,1776452870471,163.0,7.158e-05,3]
[420667421,1776452886234,436.0,7.158e-05,3]
[420667422,1776452945531,500.0,7.158e-05,2]
[420667423,1776452945648,500.0,7.158e-05,2]
[420667424,1776452945720,500.0,7.158e-05,2]
[420667425,1776452945824,549.93398933,7.158e-05,2]
[420667426,1776452947300,414.0,7.158e-05,3]
[420667428,1776452959179,374.28448492,7.158e-05,2]
[420667429,1776452959208,125.71551508,7.158e-05,2]
[420667430,1776452959243,500.0,7.158e-05,2]
[420667431,1776452959277,500.0,7.158e-05,2]
[420667432,1776452959312,374.68362909,7.158e-05,2]
[420667433,1776452959347,500.0,7.158e-05,2]
[420667434,1776452959385,500.0,7.158e-05,2]
[420667435,1776452959477,500.0,7.158e-05,2]
[420667436,1776452959538,500.0,7.158e-05,2]
[420667437,1776452959577,500.0,7.158e-05,2]
[420667438,1776452959615,500.0,7.158e-05,2]
[420667439,1776452959650,500.0,7.158e-05,2]
[420667440,1776452977938,500.0,7.158e-05,2]
[420667441,1776452977976,500.0,7.158e-05,2]
[420667442,1776452978017,500.0,7.158e-05,2]
[420667443,1776452978062,416.88658061,7.158e-05,2]
[420667444,1776452978098,500.0,7.158e-05,2]
[420667445,1776452978137,500.0,7.158e-05,2]
[420667446,1776452978179,500.0,7.158e-05,2]
[420667447,1776452978226,500.0,7.158e-05,2]
[420667448,1776452978269,500.0,7.158e-05,2]
[420667449,1776452978359,500.0,7.158e-05,2]
[420667450,1776452978411,82.72427522,7.158e-05,2]
[420667451,1776452978441,417.27572478,7.158e-05,2]
[420667452,1776452979744,225.53219979,7.158e-05,2]
[420667453,1776452993813,500.0,7.158e-05,2]
[420667454,1776452993852,500.0,7.158e-05,2]
[420667455,1776452993891,500.0,7.158e-05,2]
[420667456,1776452993933,500.0,7.158e-05,2]
[420667457,1776452993972,500.0,7.158e-05,2]
[420667458,1776452994025,500.0,7.158e-05,2]
[420667459,1776452994066,500.0,7.158e-05,2]
[420667460,1776452994107,500.0,7.158e-05,2]
[420667461,1776452994156,500.0,7.158e-05,2]
[420667462,1776452994207,500.0,7.158e-05,2]
[420667463,1776452994268,416.88658061,7.158e-05,2]
[420667464,1776453006291,154.0,7.158e-05,3]
[420667465,1776453011504,394.0,7.158e-05,3]
[420667466,1776453013977,3392.31549482,7.059e-05,2]
[420667467,1776453014002,10000.01,7.059e-05,2]